[Event "110th Anniversary Open 2020"]
[Site "Hilleroed"]
[Date "2020.02.09"]
[Round "2.10"]
[White "Torben Winther Jensen"]
[Black "Jorgensen, Dennis"]
[Result "0-1"]
[ECO "D05"]
[WhiteElo "1734"]
[BlackElo "2154"]
[Annotator "ChessBase"]
[PlyCount "70"]
[EventDate "2020.02.08"]
[EventType "swiss"]
[EventCountry "DEN"]
[SourceTitle "playchess.com"]
[Source "ChessBase"]
[SourceQuality "1"]
[TimeControl "40/5400+30:1800+30"]

1. d4 {[%emt 0:00:00]} Nf6 {[%emt 0:00:00]} 2. Nf3 {[%emt 0:00:00]} e6 {[%emt 0:00:12]} 3. e3 {[%emt 0:01:21]} b6 {[%emt 0:00:42]} 4. Bd3 {[%emt 0:01:25]} Bb7 {[%emt 0:00:48]} 5. Nbd2 {[%emt 0:00:28]} d5 {[%emt 0:07:42]} 6. c3 {[%emt 0:00:36]} Nbd7 {[%emt 0:03:13]} 7. Qe2 {[%emt 0:04:08]} Bd6 {[%emt 0:04:32]} 8. a4 {[%emt 0:00:29]} a6 {[%emt 0:02:24]} 9. e4 {[%emt 0:00:34]} dxe4 {[%emt 0:01:41]} 10. Nxe4 {[%emt 0:00:19]} Nxe4 {[%emt 0:04:10]} 11. Bxe4 {[%emt 0:00:13]} Bxe4 {[%emt 0:01:53]} 12. Qxe4 {[%emt 0:00:43]} O-O {[%emt 0:01:29]} 13. O-O {[%emt 0:00:27]} Re8 {[%emt 0:05:45]} 14. Bd2 {[%emt 0:17:09]} Qf6 {[%emt 0:06:35]} 15. Bg5 {[%emt 0:01:24]} Qg6 {[%emt 0:01:52]} 16. Qxg6 {[%emt 0:00:40]} hxg6 {[%emt 0:00:26]} 17. Rfe1 {[%emt 0:00:24]} f6 {[%emt 0:01:52]} 18. Bd2 {[%emt 0:00:14]} e5 {[%emt 0:00:49]} 19. dxe5 {[%emt 0:00:58]} Nxe5 {[%emt 0:00:42]} 20. Nxe5 {[%emt 0:00:21]} Bxe5 {[%emt 0:00:26]} 21. f4 {[%emt 0:01:49]} Rad8 {[%emt 0:02:56]} 22. Be3 {[%emt 0:00:10]} Bd6 {[%emt 0:00:16]} 23. g3 {[%emt 0:01:13]} Rxe3 {[%emt 0:05:00]} 24. Rxe3 {[%emt 0:00:10]} Bc5 {[%emt 0:00:05]} 25. Rae1 {[%emt 0:01:07]} Rd2 {[%emt 0:00:30]} 26. b4 {[%emt 0:00:30]} Bxe3+ {[%emt 0:00:54]} 27. Rxe3 {[%emt 0:00:09]} Kf7 {[%emt 0:09:28]} 28. h4 {[%emt 0:00:18]} Ra2 {[%emt 0:00:42]} 29. Re4 {[%emt 0:00:59]} Rxa4 {[%emt 0:03:17]} 30. Rd4 {[%emt 0:00:14]} Ke6 {[%emt 0:01:30]} 31. g4 {[%emt 0:00:51]} c5 {[%emt 0:01:38]} 32. f5+ {[%emt 0:02:13]} gxf5 {[%emt 0:00:48]} 33. gxf5+ {[%emt 0:00:09]} Kxf5 {[%emt 0:03:31]} 34. Rd7 {[%emt 0:00:12]} cxb4 {[%emt 0:00:24]} 35. Rxg7 {[%emt 0:00:39]} b3 {[%emt 0:00:58]} 0-1

[Event "110th Anniversary Open 2020"]
[Site "Hilleroed"]
[Date "2020.02.09"]
[Round "2.11"]
[White "Lilja, Richard"]
[Black "Strachan, Christian C."]
[Result "1-0"]
[ECO "A08"]
[WhiteElo "2123"]
[BlackElo "1773"]
[Annotator "NA"]
[PlyCount "73"]
[EventDate "2020.02.08"]
[EventType "swiss"]
[EventCountry "DEN"]
[SourceTitle "playchess.com"]
[Source "ChessBase"]
[SourceQuality "1"]
[TimeControl "40/5400+30:1800+30"]

1. e4 {[%emt 0:00:00]} e6 {[%emt 0:00:07]} 2. d3 {[%emt 0:00:00]} d5 {[%emt 0:00:05]} 3. Nd2 {[%emt 0:00:00]} c5 {[%emt 0:00:05]} 4. Ngf3 {[%emt 0:00:03]} Nc6 {[%emt 0:00:46]} 5. g3 {[%emt 0:00:08]} g6 {[%emt 0:04:18]} 6. Bg2 {[%emt 0:02:54]} Bg7 {[%emt 0:00:47]} 7. O-O {[%emt 0:03:43]} Nge7 {[%emt 0:00:31]} 8. exd5 $11 {[%emt 0:00:39]} exd5 {[%emt 0:04:17]} 9. Nb3 {[%emt 0:01:06]} b6 {[%emt 0:00:20]} 10. d4 {[%emt 0:06:48]} c4 {[%emt 0:02:03]} 11. Nbd2 {[%emt 0:00:08]} O-O {[%emt 0:02:17]} 12. Re1 {[%emt 0:02:44]} Bg4 {[%emt 0:10:22]} 13. h3 {[%emt 0:03:41]} Be6 {[%emt 0:06:33]} 14. Nf1 {[%emt 0:07:19]} Rc8 {[%emt 0:03:00]} 15. c3 {[%emt 0:02:44]} Qd7 {[%emt 0:03:27]} 16. Kh2 {[%emt 0:00:28]} f6 {[%emt 0:05:23]} 17. b3 {[%emt 0:08:19]} Rfe8 {[%emt 0:07:59]} 18. bxc4 {[%emt 0:12:50]} dxc4 {[%emt 0:00:13]} 19. Ne3 {[%emt 0:04:22]} Nd5 {[%emt 0:05:56]} 20. Nxd5 {[%emt 0:05:09]} Bxd5 {[%emt 0:00:25]} 21. Be3 {[%emt 0:00:23]} Ne7 {[%emt 0:01:07]} 22. h4 {[%emt 0:06:18]} Qc6 {[%emt 0:04:56]} 23. Rg1 {[%emt 0:01:22]} Nf5 {[%emt 0:00:33]} 24. Bf4 {[%emt 0:01:15]} Bh6 {[%emt 0:10:54]} 25. Bxh6 {[%emt 0:06:17]} Nxh6 {[%emt 0:00:11]} 26. Ne1 {[%emt 0:02:11]} Rc7 {[%emt 0:12:01]} 27. Bxd5+ {[%emt 0:05:12]} Qxd5 {[%emt 0:00:13]} 28. Ng2 {[%emt 0:00:06]} Nf5 {[%emt 0:04:47]} 29. Nf4 {[%emt 0:01:37]} Qd6 {[%emt 0:00:52]} 30. Qg4 {[%emt 0:03:07]} Nh6 {[%emt 0:02:31]} 31. Qf3 {[%emt 0:00:28]} Kg7 {[%emt 0:03:08]} 32. d5 {[%emt 0:02:50]} Rf7 {[%emt 0:02:55]} 33. Rge1 {[%emt 0:00:46]} Re5 {[%emt 0:00:31]} 34. Rad1 {[%emt 0:01:03]} Qd7 {[%emt 0:01:03]} 35. Ne6+ {[%emt 0:01:18]} Kg8 {[%emt 0:00:11]} 36. Qf4 {[%emt 0:01:56]} b5 {[%emt 0:01:39]} 37. Qxh6 {[%emt 0:01:29]} 1-0